Cogmind - Beta 11.1 @@@ ROGUE MODE // 2022.12.17 @ 12:16:28 Player: Kaz Result: Destroyed by S-10 Pest with Light Assault Rifle Performance ------------- Evolutions (0) 0 Regions Visited (2) 400 Robots Destroyed (23) 115 Value Destroyed (408) 408 Prototype IDs (0) 0 Alien Tech Used (0) 0 Bonus (0) 0 TOTAL SCORE: 923 Bonus ------- None Cogmind --------- Core Integrity 0/250 Matter 287/300 Energy 98/100 System Corruption 2% Temperature Cool (0) Movement Rolling (140) Ox4 Location -10/Mines Parts ------- > --- POWER (1) -------- (None) > --- PROPULSION (2) --- Wheel > --- UTILITY (2) ------ Large Storage Unit Large Storage Unit > --- WEAPON (2) ------- Light Assault Rifle Light Assault Rifle > --- INVENTORY (15) --- Large Storage Unit Medium Matter Pod (100) Utility Shielding Medium Laser Medium Laser Rocket Launcher Peak State ------------ > --- POWER ------------ Ion Engine > --- PROPULSION ------- Wheel Wheel > --- UTILITY ---------- Small Storage Unit > --- WEAPON ----------- Medium Laser Light Assault Rifle > --- INVENTORY -------- Medium Laser [Rating: 6] Favorites ----------- Power Ion Engine Engine Ion Engine Propulsion Compact Wheel Wheel Compact Wheel Utility Large Storage Unit Storage Large Storage Unit Weapon Light Assault Rifle Energy Gun Medium Laser Ballistic Gun Light Assault Rifle Build | -11 -10 -10 ------- Run | Scr Mat Min Slots Evolved . | . . . Power . | . . . Propulsion . | . . . Utility . | . . . Weapon . | . . . Parts Attached 19 | 6 10 3 Power 3 | 1 2 . Engine 3 | 1 2 . Core . | . . . Reactor . | . . . Propulsion 6 | 2 3 1 Treads . | . . . Leg . | . . . Wheel 6 | 2 3 1 Hover . | . . . Flight . | . . . Utility 3 | 1 2 . Device . | . . . Storage 3 | 1 2 . Processor . | . . . Hackware . | . . . Protection . | . . . Artifact . | . . . Weapon 7 | 2 3 2 Energy Gun 1 | 1 . . Energy Cannon . | . . . Ballistic Gun 6 | 1 3 2 Ballistic Cannon . | . . . Launcher . | . . . Special Weapon . | . . . Impact Weapon . | . . . Slashing Weapon . | . . . Piercing Weapon . | . . . Special Melee Weapon . | . . . Unidentified Prototypes . | . . . Parts Lost 9 | . 5 4 Power 2 | . 1 1 Propulsion 3 | . 2 1 Utility . | . . . Weapon 4 | . 2 2 Highest Loss Streak 4 | . 3 4 To Critical Strikes 1 | . 1 . Average Slot Usage (%) 76 | . 76 75 Engine 8 | . 10 7 Wheel 13 | . 15 11 Storage 25 | . 22 28 Energy Gun 1 | . 2 . Ballistic Gun 26 | . 25 27 Naked Turns . | . . . Heaviest Build 47 | 13 47 47 Greatest Support 20 | 20 20 16 Greatest Overweight (x) 15 | . 8 15 Average Overweight (x) 1 | . . 3 Largest Inventory Capacity 15 | 8 15 15 Average Capacity 13 | 6 12 15 Most Carried 8 | 5 7 8 Average Carried 5 | 1 4 6 Final Capacity 15 | 8 15 15 Final Carried 6 | 1 6 6 Class Distribution -------------------- 97% | Mutant Dominant Class ---------------- Mutant | -10/Materials Mutant | -10/Mines Resources | -11 -10 -10 ----------- Run | Scr Mat Min Matter Collected 675 | 169 390 116 Remotely . | . . . Salvage Created 656 | . 515 141 Parts 43 | . 33 10 Haulers Intercepted 1 | . 1 . Recyclers Shooed . | . . . Parts Field Recycled . | . . . Retrieved Matter . | . . . Parts Self-Destructed . | . . . Prevented . | . . . Kills | -11 -10 -10 ------- Run | Scr Mat Min Combat Hostiles Destroyed 18 | . 14 4 Guns 18 | . 14 4 Classes Destroyed 6 | . 5 1 Tunneler 1 | . . 1 Hauler 1 | . 1 . Recycler 1 | . 1 . Watcher 2 | . 2 . Swarmer 11 | . 9 2 Grunt 7 | . 5 2 Best Kill Streak 5 | . 5 2 Combat Bots Only 5 | . 5 2 Max Kills in Single Turn 1 | . 1 1 Gunslinging . | . . . Exploded . | . . . Melee . | . . . Uniques/NPCs Destroyed . | . . . Combat | -11 -10 -10 -------- Run | Scr Mat Min Damage Taken 1042 | . 571 471 Core 255 | . 134 121 Absorbed by Shields . | . . . Regen/Repaired (Parts) 68 | . 68 . Core Remaining (%) 100 | 100 . . Volleys Fired 119 | . 76 43 Largest 2 | . 2 2 Hottest 70 | . 70 40 Shots Fired 223 | . 145 78 Gun 223 | . 145 78 Cannon . | . . . Launcher . | . . . Special . | . . . Kinetic 214 | . 136 78 Thermal 9 | . 9 . Explosive . | . . . Electromagnetic . | . . . Robot Hit Streak 9 | . 9 8 Robot Miss Streak 7 | . 7 4 Penetration Max . | . . . Secondary Targets 2 | . 2 . Max Gunslinging Chain 1 | . 1 . Shots Hit Robots 126 | . 82 44 Core Hits 54 | . 38 16 Critical Kills . | . . . Critical Parts Destroyed 1 | . . 1 Critical Strikes 2 | . 1 1 Burn 1 | . 1 . Destroy 1 | . . 1 Melee Attacks . | . . . Impact . | . . . Slashing . | . . . Piercing . | . . . Sneak Attacks . | . . . Combat Hostiles . | . . . Follow-up Attacks . | . . . Damage Inflicted 1073 | . 696 377 Guns 1065 | . 688 377 Cannons . | . . . Explosions . | . . . Melee . | . . . Ramming 8 | . 8 . Kinetic 1016 | . 639 377 Thermal 49 | . 49 . Explosive . | . . . Electromagnetic . | . . . Impact . | . . . Slashing . | . . . Piercing . | . . . Highest Corruption 2 | . 2 2 Average Corruption 1 | . 1 2 Corruption Purged . | . . . Corruption Blocked . | . . . Effects 23 | . 8 15 Message Errors 6 | . 3 3 Matter Fused 5 | . 1 4 Heat Flow Errors 4 | . . 4 Energy Discharges 4 | . 2 2 Data Loss (minor) 1 | . 1 . Alerts 1 | . . 1 Weapon Failures 2 | . 1 1 Overload Shots . | . . . Overflow Damage . | . . . Projectiles . | . . . Explosions . | . . . Melee . | . . . Knockbacks . | . . . Impact . | . . . Kinetic . | . . . Secondary . | . . . Self-Inflicted Damage 4 | . 4 . Shots . | . . . Rammed 2 | . 2 . Targets Rammed 2 | . 2 . Kicked . | . . . Crushed . | . . . Highest Temperature 263 | . 90 263 Average Temperature 41 | . 22 64 Received Heat Transfer 384 | . 162 222 Siege Activations . | . . . Robots Corrupted . | . . . Combat Hostiles . | . . . Parts Fried . | . . . Impact Corruptions . | . . . Robots Melted . | . . . Combat Hostiles . | . . . Parts Melted . | . . . Heat Transferred 222 | . 222 . Parts Sabotaged . | . . . Parts Stolen . | . . . Parts Stripped . | . . . Power Chain Reactions . | . . . Missiles Intercepted . | . . . Alert | -11 -10 -10 ------- Run | Scr Mat Min Peak Influence 340 | . 340 87 Initial 22 | . . 22 Average 94 | . 151 42 Maximum Alert Level 1 | . 1 . Low Security (%) 85 | 100 71 100 Level 1 14 | . 28 . Level 2 . | . . . Level 3 . | . . . Level 4 . | . . . Level 5 . | . . . High Security . | . . . Max Security . | . . . Squads Dispatched 2 | . 2 . Investigation 1 | . 1 . Extermination . | . . . Reinforcement 1 | . 1 . Assault . | . . . Garrison . | . . . Intercept . | . . . Searches Triggered . | . . . Construction Impeded . | . . . Haulers Reinforced . | . . . Active Scanning Responses . | . . . Cargo Convoy Interrupts . | . . . Stealth | -11 -10 -10 --------- Run | Scr Mat Min Distress Signals 1 | . 1 . Communications Jammed . | . . . Distress Signals . | . . . Times Spotted 30 | . 22 8 Peak Tracking Total 4 | . 4 3 Tactical Retreats 1 | . 1 . Traps | -11 -10 -10 ------- Run | Scr Mat Min Traps Triggered 1 | . 1 . Indirectly . | . . . Trap Hack Attempts . | . . . Triggered . | . . . Disarmed . | . . . Reprogrammed . | . . . Reused . | . . . Traps Extracted . | . . . Installed . | . . . Triggered . | . . . Machines | -11 -10 -10 ---------- Run | Scr Mat Min Machines Disabled . | . . . Max in Single Turn . | . . . Machines Sabotaged . | . . . Garrisons Compromised . | . . . Overloaded Fab Kills . | . . . Hacking | -11 -10 -10 --------- Run | Scr Mat Min Machines Accessed 2 | . 2 . Terminals 1 | . 1 . Fabricators . | . . . Repair Stations 1 | . 1 . Recycling Units . | . . . Scanalyzers . | . . . Garrison Access . | . . . Total Hacks 12 | . 12 . Successful 8 | . 8 . Failed 4 | . 4 . Catastrophic . | . . . Database Lockouts . | . . . Manual . | . . . Terminals 4 | . 4 . Fabricators . | . . . Repair Stations 8 | . 8 . Recycling Units . | . . . Scanalyzers . | . . . Garrison Access . | . . . Terminal Hacks 2 | . 2 . Emergency Access Points 1 | . 1 . Dispatch Records 1 | . 1 . Fabricator Hacks . | . . . Repair Station Hacks 6 | . 6 . Scan Component 3 | . 3 . Repair 3 | . 3 . Recycling Unit Hacks . | . . . Scanalyzer . | . . . Garrison Access Hacks . | . . . Unauthorized Hacks . | . . . Terminals . | . . . Fabricators . | . . . Repair Stations . | . . . Recycling Units . | . . . Scanalyzers . | . . . Garrison Access . | . . . Data Cores Recovered . | . . . Used . | . . . Hacking Detections 2 | . 2 . Full Trace Events 1 | . 1 . Feedback Events 1 | . 1 . Corruption 1 | . 1 . Feedback Blocked . | . . . Robot Schematics Acquired . | . . . Robots Built . | . . . Authchips . | . . . Time . | . . . Total Robot Build Rating . | . . . Part Schematics Acquired . | . . . Parts Built . | . . . Authchips . | . . . Time . | . . . Total Part Build Rating . | . . . Parts Repaired 3 | . 3 . Time 78 | . 78 . Parts Recycled . | . . . Recycled Matter . | . . . Retrieved Matter . | . . . Retrieved Components . | . . . Parts Scanalyzed . | . . . Part Schematics Acquired . | . . . Parts Damaged . | . . . Bothacking | -11 -10 -10 ------------ Run | Scr Mat Min Used RIF Installer . | . . . Robots Hacked . | . . . Non-combat . | . . . Combat . | . . . Robot Hacks Applied . | . . . Relay Couplers Released . | . . . Fabnet Peak Effective % . | . . . Robots Rewired . | . . . Allies Hacked . | . . . Hacks Repelled . | . . . Allies | -11 -10 -10 -------- Run | Scr Mat Min Total Allies . | . . . Largest Group . | . . . Highest-Rated Group . | . . . Highest-Rated Ally . | . . . Total Orders . | . . . Ally Attacks . | . . . Total Damage . | . . . Kills . | . . . Allies Corrupted . | . . . Allies Melted . | . . . Intel | -11 -10 -10 ------- Run | Scr Mat Min Robot Analysis Total . | . . . Derelict Logs Recovered 1 | . . 1 Drone Launches . | . . . Drone Recoveries . | . . . Exploration | -11 -10 -10 ------------- Run | Scr Mat Min Turns Passed 1785 | 46 879 860 Spaces Moved 1114 | 49 554 511 Core 59 | 20 28 11 Treads . | . . . Legs . | . . . Wheels 1055 | 29 526 500 Hover . | . . . Flight . | . . . Fastest Speed 50 | 50 80 130 Average Speed 124 | 67 109 146 Slowest Speed 800 | 80 450 800 Overloaded Moves . | . . . Propulsion Burnouts . | . . . Robots Hopped . | . . . Cave-ins Triggered . | . . . Exploration Rate (%) 55 | 3 72 91 Regions Visited 2 Branch Regions 1 Pre-discovered Areas . | . . . Known Exits Taken . | . . . Unknown Exits Taken 2 | 1 1 . Scrap Searched 1 | . . 1 Spaces Dug . | . . . Terrain Destroyed . | . . . Melee . | . . . Projectile . | . . . AOE . | . . . Terrain Rammed . | . . . Walls Destroyed . | . . . Machines Disabled . | . . . Actions | -11 -10 -10 --------- Run | Scr Mat Min Total 1328 | 61 707 560 Wait 49 | . 49 . Move 1112 | 48 553 511 Hop . | . . . Pick Up 25 | 7 15 3 Fast Attach . | . . . Attach 16 | 6 7 3 Detach . | . . . Swap 3 | . 3 . Drop 2 | . 2 . Fire 119 | . 76 43 Melee . | . . . Ram 2 | . 2 . Kick . | . . . Crush . | . . . Escape Stasis . | . . . Rewire . | . . . Trap . | . . . Miscellaneous . | . . . Route ------- -11/Scrapyard -10/Materials (discovered 3 exits: [*Mat] / [*Min x2]) -10/Mines (discovered 2 exits: [*Mat] / [*Exi]) History --------- Turn | Location | Event 8 | -11/Scrapyard | Discovered new exit (range 16) 47 | -11/Scrapyard | Entered Materials 198 | -10/Materials | Discovered new exit (range 12) 316 | -10/Materials | Build established: Mutant 319 | -10/Materials | Discovered new exit (range 15) 325 | -10/Materials | Lost 3 parts (2n1w) 412 | -10/Materials | Core integrity fell below 50% 644 | -10/Materials | Repaired Com. Wheel 670 | -10/Materials | Repaired Ion Engine 705 | -10/Materials | Repaired Com. Wheel 880 | -10/Materials | Discovered new exit (range 11) 926 | -10/Materials | Entered Mines 949 | -10/Mines | Met a Derelict bent on vengeance 999 | -10/Mines | Found a hidden stash of uninstalled traps 1111 | -10/Mines | Learned 2 Materials zone layouts 1137 | -10/Mines | Received a Rocket Launcher from a helpful Derelict 1204 | -10/Mines | Deemed a non-threat by the Exiles lab entrance 1205 | -10/Mines | Discovered new exit (range 5) 1251 | -10/Mines | Discovered new exit (range 9) 1349 | -10/Mines | Core integrity fell below 20% 1400 | -10/Mines | Lost 4 parts (1p1n2w) 1786 | -10/Mines | Destroyed by S-10 Pest with Light Assault Rifle Last Messages --------------- 01406_ K-01 Serf collects debris. 01408_ R-06 Scavenger collects Imp. Heat Sink. 01411_ K-01 Serf collects debris. 01415_ System corrupted: Matter fused (-7). 01419_ Acquired 11 matter. 01431_ T-07 Excavator destroyed. 01446_ K-01 Serf collects debris. 01462_ Acquired Wheel. 01462_ K-01 Serf collects debris. 01464_ Acquired 16 matter. 01467_ K-01 Serf collects debris. 01475_ Acquired 2 matter. 01480_ NB%TM:TMYQQ#WK9:923VYCNZ:PSY=XIJZFRFDD 01502_ System corrupted: Heat flow error (+176). 01575_ QZM XCV%JE1MQBTN%DUVE|J&8PV>JL=7Y 01596_ System corrupted: Heat flow error (+143). 01627_ C6-25I(g): "UNAWARE KILLED MY BEST FRIEND! VENGEANCE!" 01710_ System corrupted: IFF burst signal emitted. 01726_ Acquired 8 matter. 01746_ System corrupted: Matter fused (-9). Map ----- +----------------------------------------------------+ | ######### #??????????? | | #??????## #??????????? | | # #???????## #??????????? | | ### #????????## #??????????? | | ??## #????????## ##?????????? | | ??## #???????## ##????????? | | ? ##??###### #????????? | | ##???# #????????? | | ### #????# #### #????????? | | #?# ##????# #??## ##????????? | | #?## ##?????# #???## ##???####??? | | #??### #??????# #????####???## ##?? | | ?????# #??????# #???????????# #?? | | ?????? ??????# ####???????## #?? | | ??????###??????# #??????## #?? | | ####???????????#*## #?????## #?? | | # ##??????????#[## #????## #?? | | #??????????#%## #???## ##? | | ##?????????#%## ##### #? | | ##????????# ## #? | | #????????# ###### ## ## #? | | # ##???????# #????# ####### #? | | # ##### ### #????# #?????## ##? | | ## #????# ###????####?? | | ?## ### #????# #?????????? | | ??## ########?# #????###@#?????????? | | ???# ##????????# #??????# #?????????? | | #### #?????????# #??????# #?????????? | | #?????????# #?????? ?????????? | | #### #######???# #?????? ?????????? | | ?# #???# #??????ss"?????????? | | ?# """ """ #???# #?????? "?????????? | | ?# """ """ #???# #?????#s ""????????? | | ?# """ """ #???# #?????# ????????? | | ?# #???# #?????# ?????????? | | ?# #???# #?????####?????????? | | ?# #???# #??????????????????? | | ?# #???# #??????????????????? | | ?###########???# #??????????????????? | | ???????????????# #??????????????????? | | #??????????????# #??????????????????? | | #######???###### #??????????????????? | | ##??# #??????????????????? | | ##?# ######??????????????????? | | ### #???????????????????????? | | ##??????????????????????? | | ##?????????????????????? | | #?????????????????????? | | ### #?????????????????????? | | ##?## #?????????????????????? | +----------------------------------------------------+ Best States ------------- Heat Dissipation 25 Energy Generation 10 Energy Capacity 250 Matter Stores 300 Matter Capacity 300 Sight Range 16 Terrain Scan Density 10 Evasion (%) 50 Item Schematics ----------------- None Robot Schematics ------------------ None Fabricated ------------ Nothing Alien Tech Used ----------------- None Achievements -------------- None Challenges ------------ None Game ------ Seed LegLobotomyProtomatter Manual? 0 Play Time 00:18:59 Cumulative 124.1 hours Start 2022.12.17 @ 12:02:30 End 2022.12.17 @ 12:16:28 Sessions 1 Manual Loads 0 Difficulty Rogue Special Mode None Game No. 62 Rogue 50 Adventurer 12 Explorer 0 Win Type - Total 1 Types 1/0/0/0/0/0/0/0/0 Lore% 20 Gallery% 37 Achievement% 29 Wizard Run 0 Options --------- ASCII 0 Keyboard 0 Movement Mouse Keybinds 0 Fullscreen 1 Font 24/Smallcaps Map View 113x50 Tactical HUD 1 Map Filters NONE Filters NONE Steam 1 RUN: 93fae470-e839-42f6-8e68-1c8b42e54876